bitfinex/quotes_ETHUSD_20251119
["timestamp","ask_amount","ask_price","bid_price","bid_amount"]
[1763568927790,0.4918,2991.7,2990.8,0.09999999]
[1763568928287,0.1522,2991.8,2990.8,0.09999999]
[1763568928505,0.644,2991.8,2990.8,0.09999999]
[1763568928705,0.644,2991.8,2990.4,0.4929]
[1763568928923,0.644,2991.8,2990.9,0.09999999]
[1763568928924,0.1522,2991.8,2990.9,0.09999999]
[1763568929119,0.1522,2991.8,2991.3,0.09999999]
[1763568929525,0.1522,2991.8,2989.6,7.13061044]
[1763568929526,0.405504,2991.6,2989.5,1.00191796]
[1763568929692,0.405504,2991.6,2989.5,0.4929]
[1763568929894,0.491,2991.7,2989.4,0.1841]
[1763568929895,0.405504,2991.7,2989.4,0.1841]
[1763568930117,0.405504,2991.7,2990.3,0.09999999]
[1763568930434,0.405504,2991.7,2990.0,0.09999999]
[1763568930744,0.405504,2991.5,2989.6,0.09999999]
[1763568930889,1.31249664,2991.3,2988.3,0.1841]
[1763568931091,1.31249664,2991.0,2988.7,0.09999999]
[1763568931295,0.1676,2988.8,2988.1,0.001]
[1763568931536,0.4918,2989.1,2988.1,0.001]
[1763568931740,0.1676,2989.2,2988.9,0.09999999]
[1763568932300,0.405504,2989.7,2988.9,0.09999999]
[1763568932611,0.4918,2990.2,2989.6,0.09999999]
[1763568932811,0.405504,2990.1,2989.4,0.09999999]
[1763568933311,0.4918,2990.1,2989.4,0.09999999]
[1763568933631,0.1676,2990.4,2989.7,0.09999999]
[1763568933824,0.1676,2990.4,2989.9,0.09999999]
[1763568934002,0.1542,2991.8,2990.1,0.09999999]
[1763568934198,0.4918,2991.0,2990.1,0.09999999]
[1763568934398,0.1676,2990.2,2989.8,0.09999999]
[1763568934645,0.1676,2990.2,2989.6,0.09999999]
[1763568934797,0.4918,2990.1,2989.1,0.09999999]
[1763568935238,0.405504,2990.0,2989.1,0.09999999]
[1763568935400,0.4918,2990.1,2989.2,0.09999999]
[1763568935797,0.4918,2990.1,2989.1,0.09999999]
[1763568936105,0.1676,2990.2,2989.7,0.09999999]
[1763568936514,0.1176,2990.5,2989.7,0.09999999]
[1763568936705,0.1176,2990.5,2989.5,0.09999999]
[1763568936904,0.1176,2990.5,2989.7,0.09999999]
[1763568937239,0.1176,2990.5,2989.5,0.09999999]
[1763568937240,0.405504,2990.4,2989.5,0.09999999]
[1763568937551,0.405504,2990.4,2988.6,0.1841]
[1763568937552,0.405504,2990.4,2989.3,0.09999999]
[1763568937696,0.405504,2990.4,2989.7,0.09999999]
[1763568937900,0.1176,2990.5,2989.7,0.09999999]
[1763568938348,0.1176,2990.5,2989.9,0.09999999]
[1763568938641,0.4682,2990.9,2990.1,0.09999999]
[1763568939339,0.405504,2990.8,2989.8,0.09999999]
[1763568939840,0.4682,2990.7,2989.8,0.09999999]
[1763568940037,0.405504,2990.6,2989.8,0.09999999]
[1763568940540,0.4682,2990.5,2989.8,0.09999999]
[1763568940745,0.405504,2990.4,2989.6,0.09999999]
[1763568941101,0.405504,2990.4,2989.2,0.09999999]
[1763568941102,0.405504,2990.2,2989.2,0.09999999]
[1763568941300,0.405504,2990.2,2989.0,0.09999999]
[1763568941501,0.405504,2990.0,2989.3,0.09999999]
[1763568941701,0.405504,2990.0,2989.0,0.09999999]
[1763568942001,0.4682,2989.9,2989.3,0.09999999]
[1763568942197,0.4682,2989.9,2989.1,0.09999999]
[1763568942405,0.4682,2989.9,2988.5,0.4945]
[1763568942406,0.405504,2989.8,2988.9,0.09999999]
[1763568942717,0.405504,2989.6,2988.5,0.09999999]
[1763568942932,0.405504,2989.4,2988.5,0.09999999]
[1763568943098,0.405504,2989.4,2988.4,0.001]
[1763568943099,0.176,2988.6,2988.4,0.001]
[1763568943307,0.405504,2988.5,2988.4,0.001]
[1763568943601,0.873704,2988.5,2988.4,0.001]
[1763568943799,0.873704,2988.5,2988.1,0.001]
[1763568944000,0.405504,2988.3,2988.1,0.001]
[1763568944401,0.873704,2988.2,2988.1,0.001]
[1763568944818,0.4682,2988.2,2988.1,0.001]
[1763568945141,0.176,2988.6,2988.1,0.001]
[1763568945142,0.873704,2988.5,2988.1,0.001]
[1763568945844,0.405504,2988.3,2988.1,0.001]
[1763568946049,0.4682,2988.2,2988.1,0.001]
[1763568946400,1.56696647,2988.2,2988.1,0.001]
[1763568946601,0.405504,2988.1,2987.8,0.001]
[1763568946799,1.56696647,2988.1,2986.1,0.1813]
[1763568947144,0.405504,2987.9,2986.1,0.1813]
[1763568947302,0.405504,2987.9,2986.8,0.09999999]
[1763568947502,0.4682,2988.0,2986.1,0.6758]
[1763568947503,0.405504,2987.7,2986.1,0.6758]
[1763568947749,0.405504,2987.7,2986.8,0.09999999]
[1763568947947,0.405504,2987.7,2986.1,0.6758]
[1763568947948,0.405504,2988.1,2987.2,0.09999999]
[1763568948104,0.873704,2988.1,2987.2,0.09999999]
[1763568948508,0.873704,2988.1,2987.4,0.09999999]
[1763568948745,0.4682,2988.1,2987.4,0.09999999]
[1763568949048,0.176,2988.6,2988.0,0.09999999]
[1763568949546,0.405504,2988.5,2987.8,0.10099999]
[1763568949741,0.405504,2988.5,2988.0,0.09999999]
[1763568949947,0.4682,2988.4,2987.8,0.001]
[1763568950354,0.405504,2988.3,2987.8,0.001]
[1763568950844,0.4682,2988.2,2987.8,0.001]
[1763568951204,0.405504,2988.1,2987.8,0.001]
[1763568951399,0.405504,2987.9,2987.8,0.001]
[1763568951636,0.405504,2987.9,2985.7,0.001]
[1763568951637,1.77387944,2987.9,2986.7,0.09999999]
[1763568951822,0.4682,2987.8,2986.7,0.09999999]
[1763568952144,2.01993042,2987.8,2986.7,0.09999999]
[1763568952318,0.405504,2987.6,2986.7,0.09999999]
[1763568952718,0.405504,2987.4,2986.7,0.09999999]
[1763568952917,0.1522,2987.8,2986.7,0.09999999]
[1763568953105,1.15889876,2988.3,2987.4,0.09999999]
[1763568953302,0.4682,2988.3,2987.4,0.09999999]
[1763568954503,0.4674,2988.3,2987.4,0.09999999]
[1763568954927,0.405504,2988.2,2987.4,0.09999999]
[1763568955666,0.4674,2988.3,2987.4,0.09999999]
[1763568955667,0.405504,2988.3,2987.4,0.09999999]
[1763568956025,1.09620276,2988.4,2987.2,0.09999999]
[1763568956230,0.405504,2988.4,2987.2,0.09999999]
[1763568956426,0.405504,2988.2,2987.2,0.09999999]
[1763568956867,0.405504,2988.0,2987.2,0.09999999]
[1763568957171,0.405504,2988.0,2986.9,0.09999999]
[1763568957330,0.873704,2987.9,2986.9,0.09999999]
[1763568957532,0.405504,2987.7,2987.0,0.09999999]
[1763568957773,0.405504,2987.7,2987.2,0.09999999]
[1763568958074,0.405504,2987.5,2986.6,0.09999999]
[1763568958379,0.873704,2987.5,2986.4,0.09999999]
[1763568958563,0.1464,2986.7,2986.2,0.09999999]
[1763568958876,0.405504,2986.6,2986.2,0.09999999]
[1763568959074,0.873704,2986.6,2986.2,0.09999999]
[1763568960077,0.1464,2986.7,2986.2,0.09999999]
[1763568960243,0.405504,2986.6,2986.2,0.09999999]
[1763568960444,0.873704,2986.6,2986.2,0.09999999]
[1763568960653,0.405504,2986.4,2986.0,0.001]
[1763568960852,1.26580608,2986.4,2986.0,0.001]
[1763568961031,1.26580608,2986.4,2985.7,0.001]
[1763568961032,0.405504,2986.1,2985.7,0.001]
[1763568961259,0.405504,2985.8,2985.7,0.001]
[1763568961573,1.27074898,2985.8,2985.7,0.001]
[1763568961779,1.27074898,2985.8,2984.0,0.1813]
[1763568961780,0.405504,2985.7,2984.0,0.1813]
[1763568961932,2.42914899,2985.7,2985.0,0.09999999]
[1763568962135,1.09620276,2985.6,2985.0,0.09999999]
[1763568962355,0.873704,2985.6,2984.6,0.09999999]
[1763568962762,0.873704,2985.6,2984.4,0.09999999]
[1763568962763,0.1578,2984.7,2984.4,0.09999999]
[1763568962962,0.1578,2984.7,2984.2,0.09999999]
[1763568963193,0.1578,2984.7,2983.6,1.1705278]
[1763568963396,0.405504,2984.6,2983.6,0.4955]
[1763568963576,0.405504,2984.6,2983.6,1.15831435]
[1763568963782,0.405504,2984.6,2983.6,0.4955]
[1763568964105,4.22423673,2984.6,2981.0,0.6758]
[1763568964256,0.405504,2983.4,2981.5,0.1813]
[1763568964461,1.42235023,2982.6,2981.2,0.1813]
[1763568964685,2.11094025,2982.6,2981.2,0.1813]
[1763568964884,1.93279664,2982.6,2981.2,0.1813]
[1763568965104,1.93279664,2982.6,2980.5,0.68043226]
[1763568965105,1.31249664,2982.5,2980.5,0.4945]
[1763568965272,4.33823166,2982.5,2980.4,0.1813]
[1763568965568,0.405504,2982.0,2980.0,0.4955]
[1763568965793,0.85907073,2981.6,2980.4,0.4945]
[1763568966045,1.31249664,2982.2,2980.4,0.4945]
[1763568966202,1.09117018,2982.1,2980.4,0.4945]
[1763568966495,0.68566618,2982.1,2980.4,0.4945]
[1763568966700,0.405504,2982.2,2980.4,0.4945]
[1763568967088,1.95072431,2982.2,2980.4,0.4945]
[1763568967309,2.41892431,2982.2,2980.4,0.4945]
[1763568967508,0.405504,2982.0,2980.0,0.001]
[1763568967711,0.405504,2981.5,2980.0,0.001]
[1763568967895,0.405504,2981.1,2980.0,0.001]
[1763568968227,0.405504,2981.1,2980.0,0.1955]
[1763568968523,1.08817238,2981.5,2980.2,0.467]
[1763568968678,1.08817238,2981.5,2980.0,0.1955]
[1763568968679,0.902104,2981.5,2980.0,0.1955]
[1763568968885,0.405504,2981.3,2980.0,0.001]
[1763568969124,0.405504,2981.3,2980.0,0.1955]
[1763568969283,0.405504,2981.6,2980.2,0.467]
[1763568969622,0.405504,2981.6,2980.3,0.468]
[1763568969847,0.405504,2981.4,2980.3,0.001]
[1763568970221,0.405504,2981.7,2980.3,0.468]
[1763568970737,0.24189243,2982.1,2980.3,0.468]
[1763568970943,0.73849243,2982.1,2980.3,0.8503582]
[1763568971103,0.73849243,2982.1,2980.3,0.468]
[1763568971302,0.405504,2981.9,2980.3,0.468]
[1763568972112,0.4966,2981.8,2980.3,0.468]
[1763568972530,0.68290361,2982.2,2980.4,0.03355254]
[1763568972706,1.17979415,2982.4,2980.3,4.7303498]
[1763568973042,0.68319415,2982.5,2980.3,8.0857167]
[1763568973243,0.1521,2982.6,2980.4,1.27557167]
[1763568973418,0.4966,2982.5,2980.4,1.27557167]
[1763568973609,0.405504,2982.3,2980.4,0.467]
[1763568973811,1.08863911,2982.3,2980.4,0.467]
[1763568974114,0.405504,2982.1,2980.4,0.467]
[1763568974547,0.405504,2981.9,2980.4,0.467]
[1763568974912,0.405504,2981.7,2980.4,0.467]
[1763568975241,0.405504,2981.7,2980.3,0.001]
[1763568975542,0.405504,2981.5,2980.3,0.001]
[1763568976442,0.405504,2981.8,2980.3,0.468]
[1763568976646,0.68530602,2982.0,2980.3,0.468]
[1763568976954,0.1521,2983.0,2981.7,0.1945]
[1763568977243,0.1521,2983.0,2980.3,0.468]
[1763568977244,0.4966,2982.7,2980.3,0.468]
[1763568977456,0.405504,2982.6,2980.4,0.467]
[1763568977656,0.405504,2982.4,2980.5,0.90699264]
[1763568977962,0.405504,2982.4,2980.6,0.47291471]
[1763568978156,0.405504,2982.4,2980.6,0.93991471]
[1763568978358,0.4966,2982.5,2980.7,0.03354916]
[1763568978661,0.1521,2983.0,2980.9,0.405504]
[1763568978844,0.1521,2983.0,2981.0,0.467]
[1763568979017,0.1521,2983.0,2981.1,0.1945]
[1763568979358,0.1513,2983.0,2981.1,0.1945]
[1763568979574,0.74084709,2983.5,2981.2,0.467]
[1763568979762,0.26545178,2983.5,2981.5,0.405504]
[1763568979922,0.0558,2983.5,2981.5,0.405504]
[1763568980121,0.0558,2983.5,2981.6,0.467]
[1763568980523,2.15601465,2984.5,2981.7,0.405504]
[1763568980524,0.85907073,2983.6,2981.7,0.405504]
[1763568980746,0.0558,2983.8,2981.7,0.405504]
[1763568980932,0.0558,2984.1,2982.0,0.90699264]
[1763568981131,0.68612913,2984.3,2982.0,0.90699264]
[1763568981132,0.68612913,2984.3,2982.1,1.20926431]
[1763568981335,0.0558,2984.2,2982.1,1.67626431]
[1763568981542,0.0558,2984.2,2982.2,0.6615]
[1763568981760,0.0558,2984.2,2982.2,4.01464774]
[1763568982064,0.405504,2984.1,2982.3,0.467]
[1763568982663,0.18648966,2984.1,2982.3,1.37399264]
[1763568982858,0.0558,2984.2,2982.3,1.37399264]
[1763568983022,0.0558,2984.2,2982.4,0.467]
[1763568983217,0.405504,2984.1,2982.4,0.467]
[1763568983463,1.54519986,2984.4,2982.6,0.90699264]
[1763568983643,0.68612913,2984.3,2982.8,0.90699264]
[1763568983847,0.68612913,2984.4,2982.9,0.42596597]
[1763568984049,0.85907073,2984.2,2982.6,0.467]
[1763568984250,0.85907073,2984.2,2982.2,0.1945]
[1763568984251,0.405504,2983.5,2982.2,0.1945]
[1763568984465,0.85907073,2983.2,2981.8,0.1945]
[1763568984764,0.85907073,2983.2,2981.8,0.6615]
[1763568985067,0.68612913,2983.4,2981.8,0.6615]
[1763568985264,1.26457473,2983.4,2981.9,0.4894]
[1763568985429,1.59627423,2983.4,2981.9,0.4894]
[1763568985935,1.59627423,2983.4,2981.9,1.39639264]
[1763568986134,1.59627423,2983.4,2982.0,0.4394]
[1763568986341,0.85907073,2983.2,2982.0,0.4394]
[1763568987468,0.85907073,2982.9,2982.0,0.4394]
[1763568987676,0.85907073,2982.6,2981.8,0.1945]
[1763568987828,1.54519986,2982.5,2981.8,0.1945]
[1763568988027,1.54519986,2982.4,2981.5,0.1807]
[1763568988230,0.4517,2982.8,2981.5,0.1807]
[1763568988231,0.85907073,2982.1,2981.5,0.1807]
[1763568988458,0.68612913,2982.0,2981.6,0.4894]
[1763568988658,0.68612913,2981.9,2981.6,0.4894]
[1763568988861,0.85907073,2982.5,2981.6,0.4894]
[1763568989168,0.69750349,2982.4,2981.6,0.4894]
[1763568989464,0.85907073,2982.5,2981.6,0.4894]
[1763568989465,0.69750349,2982.3,2981.6,0.4894]
[1763568989653,0.69750349,2982.2,2981.6,0.4894]
[1763568989962,0.69750349,2982.1,2981.6,1.23316266]
[1763568990165,2.72360298,2983.3,2981.6,1.23316266]
[1763568990166,0.69944212,2982.0,2981.7,1.39639264]
[1763568990465,0.85907073,2982.3,2981.7,0.4894]
[1763568990671,1.55843955,2982.2,2981.6,0.4894]
[1763568990962,1.55843955,2982.2,2981.5,0.1807]
[1763568990963,0.85907073,2981.8,2981.5,0.1807]
[1763568991163,0.85907073,2981.8,2981.1,0.6839]
[1763568991164,0.85907073,2981.6,2981.1,0.6839]
[1763568991362,0.69936882,2981.7,2981.1,0.6839]
[1763568991363,1.55843955,2981.5,2981.2,0.4894]
[1763568991570,1.55843955,2981.4,2981.2,0.4894]
[1763568991759,0.69936882,2981.3,2980.7,0.6701]
[1763568991958,0.85907073,2981.4,2980.4,0.001]
[1763568991959,1.55843955,2981.2,2980.4,0.001]
[1763568992158,1.14542764,2980.6,2980.4,0.001]
[1763568992370,0.69936882,2980.5,2980.4,0.001]
[1763568992979,0.69936882,2980.5,2980.1,0.001]
[1763568992980,0.03001604,2980.5,2980.1,0.001]
[1763568993188,0.405504,2980.4,2980.1,0.001]
[1763568993545,2.33302846,2980.5,2980.1,0.001]
[1763568993784,1.7496571,2980.2,2980.1,0.001]
[1763568994083,2.33302846,2980.6,2980.1,0.001]
[1763568994289,1.74959874,2980.2,2980.1,0.001]
[1763568994445,1.74959874,2980.5,2980.1,0.4904]
[1763568994645,0.87522378,2980.5,2980.1,0.4904]
[1763568994851,0.87522378,2980.9,2980.2,0.6351934]
[1763568995084,0.87522378,2981.0,2980.3,0.405504]
[1763568995287,0.87522378,2981.5,2981.0,0.1807]
[1763568995488,0.87522378,2981.7,2981.0,0.1807]
[1763568995650,0.87522378,2982.2,2981.3,0.90699264]
[1763568995847,0.87522378,2982.0,2981.4,0.67675266]
[1763568996095,0.87522378,2981.9,2981.4,0.4894]
[1763568996352,0.87522378,2982.3,2981.4,0.4894]
[1763568996875,0.87522378,2982.4,2981.4,0.4894]
[1763568997082,0.87522378,2982.3,2981.4,0.4894]
[1763568998091,0.87522378,2982.4,2981.4,0.4894]
[1763568998392,0.87522378,2982.7,2981.4,3.84351653]
[1763568998606,0.87522378,2982.6,2981.5,0.38435165]
[1763568998795,0.87522378,2982.7,2981.5,0.87175165]
[1763568999098,0.87522378,2982.6,2981.6,0.4874]
[1763568999587,0.87522378,2982.7,2981.6,0.4874]
[1763569000097,0.87522378,2982.6,2981.6,0.4874]
[1763569000248,1.16691267,2982.8,2981.6,0.4874]
[1763569000249,0.87522378,2982.5,2981.6,0.4874]
[1763569000649,0.87522378,2982.5,2981.1,0.4874]
[1763569000650,1.07943743,2982.5,2981.1,0.4874]
[1763569000850,0.87522378,2982.4,2981.1,0.4874]
[1763569001073,0.87522378,2982.2,2981.1,0.4874]
[1763569001260,0.87522378,2982.3,2981.1,0.4874]
[1763569001459,0.87522378,2982.2,2981.5,0.001]
[1763569001849,0.87522378,2982.1,2981.5,0.001]
[1763569002870,0.87835012,2982.1,2981.5,0.001]
[1763569003795,0.87835012,2982.0,2981.5,0.001]
[1763569004115,0.87835012,2981.6,2981.5,0.001]
[1763569004320,0.87755012,2981.6,2981.5,0.001]
[1763569004973,0.70232002,2981.7,2981.5,0.001]
[1763569005179,1.31249664,2982.4,2981.5,0.001]
[1763569005180,0.70232002,2981.6,2981.5,0.001]
[1763569005675,0.70232002,2981.8,2981.5,0.4884]
[1763569005891,0.70232002,2982.1,2981.5,0.4884]
[1763569006089,0.70232002,2982.0,2981.5,0.4884]
[1763569006291,0.70232002,2982.1,2981.5,0.4884]
[1763569006582,0.70232002,2982.2,2981.5,0.87276089]
[1763569006794,0.70232002,2982.1,2981.5,0.4884]
[1763569007124,0.70232002,2982.0,2981.5,0.4884]
[1763569007277,1.16691267,2982.2,2981.5,0.001]
[1763569007484,1.86994382,2982.1,2981.5,0.001]
[1763569007781,0.90699264,2982.4,2981.5,0.001]
[1763569007782,0.553204,2981.6,2981.5,0.001]
[1763569008128,2.33523946,2981.6,2981.5,0.001]
[1763569008418,1.92973546,2981.6,2981.5,0.001]
[1763569008591,3.68577066,2981.6,2981.5,0.001]
[1763569008789,4.09127466,2981.6,2981.5,0.001]
[1763569008995,4.55527466,2981.6,2981.5,0.001]
[1763569009192,2.79923946,2981.6,2981.5,0.001]
[1763569009823,2.79923946,2981.6,2981.3,0.001]
[1763569009824,0.405504,2981.5,2981.3,0.001]
[1763569009985,1.29775983,2981.4,2981.3,0.001]
[1763569010384,3.96012221,2981.4,2981.3,0.001]
[1763569010617,2.66875247,2981.4,2981.3,0.001]
[1763569010789,1.31249664,2981.3,2981.0,0.001]
[1763569010988,2.73853246,2981.1,2980.0,0.001]
[1763569011234,0.405504,2980.4,2980.0,0.001]
[1763569011433,0.70303115,2980.4,2980.0,0.001]
[1763569011638,0.405504,2980.5,2980.0,0.001]
[1763569012241,0.869504,2980.5,2980.0,0.001]
[1763569012477,1.10853515,2980.5,2980.0,0.001]
[1763569012632,0.70303115,2980.6,2980.1,0.4884]
[1763569012825,0.1818,2980.8,2980.1,0.001]
[1763569013183,0.405504,2980.3,2980.1,0.001]
[1763569013335,1.10853515,2980.3,2980.1,0.001]
[1763569013529,0.869504,2980.3,2980.1,0.001]
[1763569013727,0.58315366,2980.2,2980.1,0.001]
[1763569014627,0.405504,2980.3,2980.1,0.001]
[1763569014933,1.16900353,2980.6,2980.1,0.001]
[1763569014934,1.87203468,2980.6,2980.1,0.001]
[1763569015141,0.70303115,2980.5,2980.1,0.001]
[1763569015334,0.405504,2980.6,2980.1,0.001]
[1763569015751,0.405504,2980.4,2980.1,0.001]
[1763569016674,0.405504,2980.6,2980.1,0.001]
[1763569016830,0.405504,2980.3,2980.1,0.001]
[1763569017264,0.405504,2980.4,2980.1,0.001]
[1763569017562,0.70303115,2980.5,2980.1,0.001]
[1763569017764,0.405504,2980.4,2980.1,0.001]
[1763569017936,0.405504,2980.7,2980.1,0.001]
[1763569018141,0.869504,2980.7,2980.1,0.001]
[1763569018470,0.405504,2980.3,2980.1,0.001]
[1763569018653,1.16900353,2980.2,2980.1,0.001]
[1763569018888,1.10853515,2980.2,2980.1,0.001]
[1763569019402,0.405504,2980.4,2980.1,0.001]
[1763569019896,0.70303115,2980.7,2980.1,0.001]
[1763569020104,0.1173,2978.6,2976.9,0.3361]
[1763569020262,3.544,2978.5,2976.3,0.4874]
[1763569020462,2.15900929,2978.1,2976.3,0.4874]
[1763569020661,0.405504,2978.1,2976.4,6.87102535]
[1763569020907,0.70303115,2978.2,2976.5,0.4874]
[1763569021203,3.2400211,2979.0,2976.6,0.03359537]
[1763569021204,0.405504,2978.1,2976.6,0.03359537]
[1763569021360,0.70303115,2978.6,2976.7,0.6817]
[1763569021559,0.90699264,2978.4,2976.7,0.1943]
[1763569021779,0.405504,2977.9,2976.3,0.4874]
[1763569022020,2.01552779,2977.9,2976.3,0.4874]
[1763569022195,0.8183522,2978.3,2976.3,3.84725292]
[1763569022356,0.405504,2978.3,2976.3,0.4874]
[1763569022557,0.69559911,2978.4,2976.0,0.1943]
[1763569022558,0.405504,2978.1,2976.4,0.4874]
[1763569022772,1.31249664,2977.9,2976.0,0.6817]
[1763569022989,0.405504,2977.7,2976.1,0.4874]
[1763569023185,1.10110311,2977.7,2976.1,0.4874]
[1763569023404,0.405504,2977.5,2976.1,0.4874]
[1763569024189,2.83990265,2979.2,2976.1,0.4874]
[1763569024190,0.405504,2977.8,2976.1,0.4874]
[1763569024374,0.69354317,2978.4,2976.2,0.90699264]
[1763569024574,0.1576,2978.7,2976.3,0.96284652]
[1763569025003,0.405504,2978.6,2976.4,0.4874]
[1763569025159,0.405504,2978.4,2976.4,0.4874]
[1763569025507,0.405504,2978.2,2976.4,0.4874]
[1763569025866,0.1576,2978.3,2976.4,0.4874]
[1763569025867,0.405504,2978.0,2976.4,0.4874]
[1763569026201,0.405504,2977.8,2976.0,0.1943]
[1763569026499,0.405504,2977.6,2976.0,0.1943]
[1763569026704,0.405504,2977.6,2974.7,1.10129264]
[1763569026705,0.405504,2977.6,2975.7,0.1943]
[1763569026913,0.405504,2977.4,2975.7,0.1943]
[1763569027204,0.405504,2977.2,2975.1,0.4874]
[1763569027406,0.405504,2977.0,2975.6,0.1943]
[1763569027815,0.0393,2977.5,2975.7,0.4621]
[1763569028369,0.0393,2977.5,2975.7,1.36909264]
[1763569028608,0.1576,2978.1,2975.7,4.72964591]
[1763569028609,0.0393,2977.8,2975.7,4.72964591]
[1763569028786,0.0393,2977.8,2975.8,0.4621]
[1763569028995,0.0393,2977.8,2975.9,0.47296459]
[1763569029289,0.1576,2977.5,2975.8,0.4621]
[1763569030179,1.06459264,2977.5,2975.6,0.1943]
[1763569030379,0.90699264,2977.3,2975.2,0.4621]
[1763569030577,0.90699264,2976.9,2974.9,0.1943]
[1763569030776,0.90699264,2976.7,2974.9,0.1943]
[1763569031080,0.90699264,2976.7,2974.7,0.6564]
[1763569031081,0.90699264,2976.5,2974.7,0.6564]
[1763569031319,1.31249664,2976.3,2974.5,0.001]
[1763569031619,1.31249664,2975.7,2974.5,0.001]
[1763569031828,0.405504,2975.5,2974.5,0.001]
[1763569031991,1.09563247,2975.5,2974.5,0.001]
[1763569032176,1.31249664,2975.3,2974.5,0.001]
[1763569032377,1.31249664,2975.1,2974.5,0.001]
[1763569032623,1.31249664,2974.9,2974.5,0.001]
[1763569032826,1.31249664,2974.7,2974.5,0.001]
[1763569033135,0.405504,2974.5,2972.9,0.1917]
[1763569033312,0.405504,2974.5,2972.5,0.4621]
[1763569033313,0.90699264,2974.3,2972.5,0.1917]
[1763569033533,0.405504,2974.2,2972.5,0.1917]
[1763569033859,0.405504,2974.3,2972.6,0.4621]
[1763569034124,0.1576,2974.2,2972.6,0.4621]
[1763569034324,0.405504,2974.1,2972.5,0.1917]
[1763569034526,0.405504,2974.1,2972.5,0.6538]
[1763569034887,0.68721711,2974.6,2972.5,0.1917]
[1763569034888,0.405504,2973.9,2972.5,0.1917]
[1763569035115,0.405504,2973.9,2972.6,0.4621]
[1763569035321,0.405504,2974.1,2972.6,0.4621]
[1763569035730,0.1576,2974.1,2972.6,0.4621]
[1763569036400,0.405504,2974.5,2972.6,0.4621]
[1763569036600,0.1576,2974.1,2972.6,0.4621]
[1763569036806,0.405504,2973.9,2972.6,0.4621]
[1763569037237,0.51189231,2974.8,2972.7,0.03363945]
[1763569037403,0.1576,2974.7,2972.8,0.4621]
[1763569037833,0.405504,2974.6,2972.8,0.4621]
[1763569038359,0.1576,2974.7,2972.8,0.4621]
[1763569038717,0.68616116,2975.1,2972.8,0.4621]
[1763569038962,0.1576,2975.3,2972.9,0.90699264]
[1763569039261,0.1183,2975.6,2973.0,0.84331094]
[1763569039562,0.1183,2975.6,2973.1,0.405504]
[1763569039856,0.1183,2975.6,2973.1,0.867604]
[1763569040217,0.1183,2975.9,2973.2,0.4621]
[1763569040417,0.1183,2975.9,2973.4,0.90699264]
[1763569040614,0.1183,2975.9,2973.5,0.76335254]
[1763569040855,0.1183,2975.9,2973.5,1.41715254]
[1763569041018,0.1183,2975.9,2973.6,0.4621]
[1763569041646,0.405504,2975.7,2973.6,0.4621]
[1763569041955,0.1576,2975.8,2973.6,0.4621]
[1763569042158,0.1183,2975.9,2973.6,0.4621]
[1763569042360,0.405504,2975.8,2973.8,0.90699264]
[1763569042678,0.405504,2975.8,2973.9,0.42698066]
[1763569042865,0.1183,2975.9,2973.9,0.92270653]
[1763569043069,0.1183,2975.9,2974.0,0.4621]
[1763569043239,0.68641344,2976.6,2974.0,0.4621]
[1763569043442,0.84401344,2976.7,2974.0,0.4621]
[1763569043747,0.1576,2976.7,2974.0,0.4621]
[1763569044129,0.33270061,2976.7,2974.0,0.4621]
[1763569044465,0.405504,2976.6,2974.1,0.90699264]
[1763569044767,0.563104,2976.6,2974.0,0.4621]
[1763569044932,0.563104,2976.6,2974.1,0.4823]
[1763569044933,0.405504,2976.4,2974.1,0.4823]
[1763569045459,1.31249664,2976.2,2974.1,0.4823]
[1763569045665,0.405504,2976.0,2974.1,0.4823]
[1763569045964,1.09610427,2976.0,2974.1,0.4823]
[1763569046131,0.69060027,2976.2,2974.1,0.4823]
[1763569046458,0.69060027,2976.5,2974.4,0.90699264]
[1763569046665,0.69060027,2976.5,2973.7,0.03362814]
[1763569046666,1.0673657,2977.0,2974.5,0.6673]
[1763569046822,0.1576,2976.4,2974.6,0.4823]
[1763569047020,0.405504,2976.3,2974.6,0.4823]
[1763569047774,0.69060027,2976.4,2974.6,0.4823]
[1763569048065,0.90699264,2976.8,2974.6,0.4823]
[1763569048066,0.69060027,2976.6,2974.6,0.4823]
[1763569048231,1.75350529,2976.7,2974.6,0.4823]
[1763569048435,1.75519291,2976.8,2974.6,0.4823]
[1763569048436,0.35086982,2976.6,2974.6,0.4823]
[1763569048680,0.35086982,2976.6,2974.7,0.90699264]
[1763569048862,1.15787519,2976.5,2974.6,0.4823]
[1763569049097,0.405504,2976.4,2974.7,0.4823]
[1763569049408,0.405504,2975.9,2974.7,0.4823]
[1763569049585,0.60239232,2975.9,2974.7,0.4823]
[1763569049767,1.29299259,2975.9,2974.7,0.4823]
[1763569049966,0.69060027,2975.8,2974.7,0.4823]
[1763569050410,0.405504,2975.8,2974.5,0.185]
[1763569050698,0.405504,2975.5,2974.6,0.4823]
[1763569050900,0.69060027,2975.6,2974.6,0.4823]
[1763569051106,1.15787519,2975.9,2974.6,1.38929264]
[1763569051107,1.09610427,2975.9,2974.6,1.38929264]
[1763569051408,0.405504,2976.0,2974.7,0.49361726]
[1763569051567,0.405504,2976.0,2974.7,0.97591726]
[1763569051908,1.15787519,2976.1,2974.7,0.97591726]
[1763569051909,0.405504,2976.1,2974.7,0.97591726]
[1763569052056,0.405504,2976.1,2974.5,0.185]
[1763569052057,0.405504,2975.9,2974.8,0.4823]
[1763569052257,0.405504,2976.0,2974.8,0.4823]
[1763569052685,0.405504,2975.9,2974.8,0.4823]
[1763569053061,1.84847546,2976.1,2974.8,0.4823]
[1763569053062,0.405504,2976.0,2974.8,0.4823]
[1763569053270,0.22539795,2976.0,2974.8,0.4823]
[1763569053472,0.405504,2975.8,2974.8,0.4823]
[1763569053673,1.56337919,2975.6,2974.8,0.4823]